bitfinex-derivatives/quotes_BTCF0:USTF0_20241006
["timestamp","ask_amount","ask_price","bid_price","bid_amount"]
[1728219176148,0.09707863,62204.0,62203.0,0.066708]
[1728219180759,0.03277163,62204.0,62203.0,0.066708]
[1728219190174,0.3242,62299.0,62203.0,0.8795]
[1728219190366,0.3608,62282.0,62278.0,0.0004]
[1728219190566,0.06423,62279.0,62278.0,0.0004]
[1728219190971,1.14172,62279.0,62256.0,0.3608]
[1728219191168,0.0004,62257.0,62256.0,0.3608]
[1728219191367,0.06,62279.0,62256.0,0.3608]
[1728219191569,0.12423,62279.0,62278.0,0.0004]
[1728219191776,0.12423,62279.0,62278.0,0.0014]
[1728219192073,1.20595,62279.0,62278.0,0.0014]
[1728219192276,1.20595,62279.0,62278.0,0.0004]
[1728219192866,1.20595,62279.0,62278.0,0.0014]
[1728219193167,1.20595,62279.0,62278.0,0.0024]
[1728219194178,1.23452403,62279.0,62278.0,0.0024]
[1728219194582,0.064235,62274.0,62269.0,0.0037]
[1728219194776,1.17029403,62279.0,62265.0,0.0037]
[1728219194777,0.0004,62270.0,62265.0,0.0037]
[1728219194977,0.0004,62266.0,62259.0,0.0037]
[1728219195272,0.0004,62260.0,62256.0,0.425053]
[1728219195580,0.0004,62257.0,62256.0,0.3608]
[1728219196273,0.0604,62257.0,62256.0,0.3608]
[1728219196478,0.0604,62257.0,62256.0,0.3118]
[1728219196681,0.0604,62257.0,62256.0,0.3128]
[1728219197183,0.0604,62257.0,62256.0,0.2619]
[1728219197382,0.0604,62257.0,62256.0,0.2629]
[1728219198872,0.54328,62257.0,62256.0,0.002]
[1728219200269,0.607533,62257.0,62256.0,0.002]
[1728219200469,0.125653,62257.0,62256.0,0.002]
[1728219202476,0.0614,62257.0,62256.0,0.002]
[1728219204379,0.0614,62257.0,62256.0,0.066254]
[1728219208173,0.0614,62257.0,62256.0,0.002]
[1728219208368,0.125653,62257.0,62256.0,0.002]
[1728219214386,0.486453,62257.0,62249.0,0.0074]
[1728219214581,0.486453,62257.0,62247.0,0.00108]
[1728219214582,0.0004,62250.0,62247.0,0.00108]
[1728219214779,0.0004,62250.0,62244.0,0.075465]
[1728219214780,0.0004,62248.0,62244.0,0.064265]
[1728219214988,0.0004,62245.0,62244.0,0.064265]
[1728219216188,0.0004,62245.0,62244.0,0.065265]
[1728219220278,0.0004,62245.0,62244.0,0.17169087]
[1728219220478,0.064665,62245.0,62244.0,0.10742587]
[1728219220885,0.124665,62245.0,62244.0,0.10742587]
[1728219221080,0.179565,62245.0,62244.0,0.10742587]
[1728219222182,0.1149,62245.0,62244.0,0.10742587]
[1728219222878,0.179165,62245.0,62244.0,0.10742587]
[1728219223079,0.179165,62245.0,62244.0,0.20263031]
[1728219223482,0.179165,62245.0,62244.0,0.10742587]
[1728219223676,0.179165,62245.0,62244.0,0.20263031]
[1728219223881,0.179165,62245.0,62244.0,0.20225416]
[1728219224386,0.179165,62245.0,62244.0,0.10704972]
[1728219224588,0.179165,62245.0,62244.0,0.20314208]
[1728219225293,0.179165,62245.0,62244.0,0.20315022]
[1728219225899,0.179165,62245.0,62244.0,0.10704972]
[1728219228893,0.179165,62245.0,62244.0,0.10710262]
[1728219231901,0.179165,62245.0,62244.0,0.18717947]
[1728219232203,0.179165,62245.0,62244.0,0.08107685]
[1728219232591,0.179165,62245.0,62244.0,0.18720066]
[1728219233809,0.179165,62245.0,62244.0,0.18717303]
[1728219234190,0.179165,62245.0,62244.0,0.1871875]
[1728219234399,0.179165,62245.0,62244.0,0.04904426]
[1728219234592,0.179165,62245.0,62244.0,0.001]
[1728219239295,0.179165,62245.0,62244.0,0.04904426]
[1728219239493,0.179165,62245.0,62244.0,0.001]
[1728219241204,0.179165,62245.0,62244.0,0.04904426]
[1728219241392,0.179165,62245.0,62244.0,0.23362393]
[1728219242196,0.179165,62245.0,62244.0,0.23364077]
[1728219245505,0.119165,62245.0,62244.0,0.29790677]
[1728219248300,0.119165,62245.0,62244.0,0.65879986]
[1728219249404,0.119165,62245.0,62244.0,0.426066]
[1728219253005,0.0549,62245.0,62244.0,0.426066]
[1728219253399,0.0549,62245.0,62244.0,0.065266]
[1728219253602,0.0549,62246.0,62244.0,0.065266]
[1728219253903,0.0549,62246.0,62245.0,0.0004]
[1728219254106,0.09284323,62246.0,62245.0,0.0004]
[1728219256306,0.09284323,62246.0,62245.0,0.23350965]
[1728219256307,0.0549,62246.0,62245.0,0.23350965]
[1728219256996,0.0559,62246.0,62245.0,0.23350965]
[1728219259198,0.0559,62246.0,62245.0,0.29777465]
[1728219260206,0.0559,62246.0,62245.0,0.26716059]
[1728219260394,0.0559,62246.0,62245.0,0.1710125]
[1728219261702,0.0559,62246.0,62245.0,0.29768658]
[1728219262012,0.0559,62246.0,62245.0,0.58740789]
[1728219262203,0.00767071,62246.0,62245.0,0.61023232]
[1728219263115,0.00767071,62246.0,62245.0,0.46318285]
[1728219264305,0.00767071,62246.0,62245.0,0.35211101]
[1728219264613,0.00767071,62246.0,62245.0,0.11908943]
[1728219265810,0.01437071,62246.0,62245.0,0.84068943]
[1728219267000,0.01437071,62246.0,62245.0,0.11908943]
[1728219267298,0.01437071,62246.0,62245.0,0.84068943]
[1728219271610,0.01437071,62246.0,62245.0,1.01109671]
[1728219272204,0.01437071,62246.0,62245.0,0.91501601]
[1728219275818,0.01437071,62246.0,62245.0,0.55421601]
[1728219278117,0.07863471,62246.0,62245.0,0.3612]
[1728219278326,0.07863471,62246.0,62245.0,0.3113]
[1728219278525,0.13863471,62246.0,62245.0,0.3113]
[1728219279516,0.17679263,62246.0,62245.0,0.3113]
[1728219279712,0.17679263,62246.0,62245.0,0.2614]
[1728219280020,0.17679263,62246.0,62237.0,0.064273]
[1728219280021,0.11252863,62246.0,62240.0,0.3608]
[1728219280225,0.064669,62241.0,62240.0,0.3608]
[1728219280715,0.064273,62237.0,62233.0,0.13730143]
[1728219280926,0.064273,62237.0,62234.0,0.11555708]
[1728219281214,0.064273,62237.0,62233.0,0.11229297]
[1728219281215,0.06,62236.0,62235.0,0.11555708]
[1728219281418,0.124274,62236.0,62235.0,0.11555708]
[1728219281819,0.124274,62236.0,62233.0,0.064277]
[1728219282012,0.064275,62235.0,62234.0,0.11555782]
[1728219282913,0.097075,62235.0,62234.0,0.11555782]
[1728219283115,0.097075,62235.0,62234.0,0.12555782]
[1728219283622,0.103775,62235.0,62234.0,0.12555782]
[1728219283922,0.103775,62235.0,62234.0,0.13655782]
[1728219284621,0.103775,62235.0,62234.0,0.11143656]
[1728219284827,0.103775,62235.0,62234.0,0.021]
[1728219285117,0.103775,62235.0,62234.0,0.11143679]
[1728219285325,0.103775,62235.0,62234.0,0.17675224]
[1728219286530,0.0395,62235.0,62234.0,0.40928159]
[1728219287036,0.103775,62235.0,62234.0,0.40928159]
[1728219288624,0.103775,62235.0,62234.0,0.36908746]
[1728219288821,0.103775,62235.0,62234.0,0.3188448]
[1728219290821,0.103775,62235.0,62234.0,0.12708276]
[1728219291225,0.103775,62235.0,62234.0,0.22301149]
[1728219291733,1.185815,62235.0,62234.0,0.22301149]
[1728219294046,1.185815,62235.0,62234.0,0.07718276]
[1728219295452,1.20844276,62235.0,62234.0,0.07718276]
[1728219295656,1.56924276,62235.0,62234.0,0.07718276]
[1728219296449,0.064277,62233.0,62232.0,0.09592873]
[1728219296644,0.06428,62230.0,62229.0,0.09592873]
[1728219296843,0.064281,62229.0,62228.0,0.09592873]
[1728219297153,0.064681,62229.0,62228.0,0.09592873]
[1728219297542,0.0004,62229.0,62227.0,0.09592873]
[1728219297849,0.064285,62226.0,62225.0,0.07994228]
[1728219298039,0.0004,62226.0,62224.0,0.07994228]
[1728219298244,0.064686,62225.0,62224.0,0.07994228]
[1728219298439,0.064287,62224.0,62223.0,0.07994228]
[1728219298653,0.064687,62224.0,62223.0,0.07994228]
[1728219298850,0.0004,62224.0,62220.0,0.09592873]
[1728219299051,0.0004,62221.0,62220.0,0.09592873]
[1728219299350,0.0004,62221.0,62219.0,0.064292]
[1728219299351,0.06469,62221.0,62219.0,0.064292]
[1728219299544,0.07139,62221.0,62219.0,0.064292]
[1728219299746,0.0004,62220.0,62219.0,0.064292]
[1728219299942,0.064692,62220.0,62217.0,0.09592873]
[1728219300256,0.0004,62218.0,62217.0,0.09592873]
[1728219301151,0.0004,62218.0,62217.0,0.064294]
[1728219301341,0.0004,62218.0,62217.0,0.16022273]
[1728219301543,0.0004,62218.0,62216.0,0.02499932]
[1728219301745,0.064694,62217.0,62216.0,0.02499932]
[1728219302351,0.0004,62217.0,62216.0,0.08929432]
[1728219302944,0.0014,62218.0,62217.0,0.070294]
[1728219303149,0.0014,62218.0,62217.0,0.13602839]
[1728219303653,0.0014,62218.0,62217.0,0.20988333]
[1728219304051,0.0014,62218.0,62217.0,0.57068333]
[1728219304350,0.0081,62218.0,62217.0,0.49082839]
[1728219304755,0.0081,62218.0,62217.0,0.45062261]
[1728219305049,0.0004,62220.0,62219.0,0.064292]
[1728219305351,0.0004,62220.0,62219.0,0.064692]
[1728219306443,0.0014,62220.0,62219.0,0.073692]
[1728219306946,0.0014,62220.0,62219.0,0.13757719]
[1728219307142,0.0014,62220.0,62219.0,0.13758246]
[1728219307347,0.0024,62220.0,62219.0,0.080692]
[1728219307550,0.0024,62220.0,62219.0,0.14458242]
[1728219307951,0.0024,62220.0,62219.0,0.080692]
[1728219308751,0.0004,62221.0,62219.0,0.080692]
[1728219308955,0.0004,62221.0,62220.0,0.0004]
[1728219310356,0.0004,62221.0,62220.0,0.0054]
[1728219310555,0.0014,62221.0,62220.0,0.0054]
[1728219311658,0.0014,62221.0,62220.0,0.1109949]
[1728219312459,0.0014,62221.0,62220.0,0.1119949]
[1728219312755,0.0014,62221.0,62220.0,0.1169949]
[1728219313557,0.06569,62221.0,62220.0,0.1169949]
[1728219314751,0.06569,62221.0,62220.0,0.0184949]
[1728219315765,0.06569,62221.0,62220.0,0.0134949]
[1728219315952,0.06569,62221.0,62220.0,0.0174949]
[1728219316261,0.06469,62221.0,62220.0,0.0164949]
[1728219316652,0.06469,62221.0,62220.0,0.008]
[1728219316853,0.06469,62221.0,62220.0,0.006]
[1728219317552,0.06469,62221.0,62220.0,0.008]
[1728219317951,0.06469,62221.0,62220.0,0.005]
[1728219318154,0.06469,62221.0,62220.0,0.009]
[1728219319251,0.06469,62221.0,62220.0,0.0709238]
[1728219319765,0.06469,62221.0,62220.0,0.0699238]
[1728219320254,0.06469,62221.0,62220.0,0.006]
[1728219320456,0.42549,62221.0,62220.0,0.003]
[1728219320659,0.42549,62221.0,62220.0,0.005]
[1728219321060,0.48549,62221.0,62220.0,0.005]
[1728219323761,0.48549,62221.0,62220.0,0.08490476]
[1728219324059,0.48549,62221.0,62220.0,0.005]
[1728219324267,0.48549,62221.0,62220.0,0.085058]
[1728219324964,0.48549,62221.0,62220.0,0.005]
[1728219326651,0.42549,62221.0,62220.0,0.005]
[1728219326858,0.42549,62221.0,62220.0,0.10092873]
[1728219327364,0.42549,62221.0,62220.0,0.005]
[1728219327565,0.42549,62221.0,62220.0,0.069291]
[1728219328463,0.06469,62221.0,62220.0,0.069291]
[1728219328664,0.42549,62221.0,62220.0,0.069291]
[1728219329561,0.42549,62221.0,62220.0,0.005]
[1728219329869,0.42549,62221.0,62220.0,0.11035339]
[1728219330661,0.42549,62221.0,62220.0,0.23588686]
[1728219330662,0.06469,62221.0,62220.0,0.23588686]
[1728219330964,0.06469,62221.0,62220.0,0.11035339]
[1728219331565,0.06469,62221.0,62220.0,0.20649771]
[1728219331868,0.06469,62221.0,62220.0,0.11035339]
[1728219332065,0.06469,62221.0,62220.0,0.1904741]
[1728219332267,0.06469,62221.0,62220.0,0.19038949]
[1728219333374,0.06469,62221.0,62220.0,0.11026878]
[1728219334572,0.06469,62221.0,62220.0,0.08512641]
[1728219334769,0.06469,62221.0,62220.0,0.005]
[1728219338366,0.06469,62221.0,62220.0,0.08512641]
[1728219338575,0.06469,62221.0,62220.0,0.19041581]
[1728219338760,0.06469,62221.0,62220.0,0.1102894]
[1728219339170,0.06469,62221.0,62220.0,0.20645027]
[1728219339365,0.06469,62221.0,62220.0,0.1102894]
[1728219339874,0.06469,62221.0,62220.0,0.20645027]
[1728219340078,0.12469,62221.0,62220.0,0.20645027]
[1728219340263,0.12469,62221.0,62220.0,0.1102894]
[1728219340868,0.12469,62221.0,62220.0,0.20645027]
[1728219341767,0.12469,62221.0,62220.0,0.20645962]
[1728219342375,0.06469,62221.0,62220.0,0.20645962]
[1728219344580,0.42549,62221.0,62220.0,0.20645962]
[1728219346676,0.42549,62221.0,62220.0,0.20647363]
[1728219347778,0.42549,62221.0,62220.0,0.15937363]
[1728219349175,0.42549,62221.0,62220.0,0.10531276]
[1728219349768,0.06469,62221.0,62220.0,0.10531276]
[1728219349976,0.42549,62221.0,62220.0,0.10531276]
[1728219351678,0.42549,62221.0,62220.0,0.10501298]
[1728219353881,0.064291,62220.0,62219.0,0.0004]
[1728219354381,0.064691,62220.0,62219.0,0.08057316]
[1728219354983,0.064691,62220.0,62219.0,0.0004]
[1728219355585,0.064691,62220.0,62219.0,0.0034]
[1728219356580,0.064691,62220.0,62219.0,0.0074]
[1728219359974,0.064691,62220.0,62219.0,0.08757316]
[1728219360879,0.064691,62220.0,62219.0,0.0074]
[1728219361285,0.064691,62220.0,62219.0,0.08757316]
[1728219361789,0.064691,62220.0,62219.0,0.11254934]
[1728219363476,0.064691,62220.0,62219.0,0.23786637]
[1728219364687,0.064691,62220.0,62219.0,0.23787167]
[1728219368794,0.064691,62220.0,62219.0,0.11254402]
[1728219369487,0.064691,62220.0,62219.0,0.11257186]
[1728219370989,0.064691,62220.0,62219.0,0.19276778]
[1728219376787,0.10396102,62220.0,62219.0,0.0074]
[1728219379790,0.03967002,62220.0,62219.0,0.071692]
[1728219379991,0.0004,62220.0,62219.0,0.071692]
[1728219382606,0.03983441,62220.0,62219.0,0.071692]
[1728219382911,0.0004,62225.0,62220.0,0.48216]
[1728219383095,0.0004,62260.0,62256.0,0.064254]
[1728219383290,0.0004,62260.0,62256.0,0.07251849]
[1728219383994,0.0004,62260.0,62256.0,0.0004]
[1728219385510,0.02354538,62260.0,62256.0,0.0004]
[1728219385890,0.02354538,62260.0,62256.0,0.0014]
[1728219385891,0.0074,62257.0,62256.0,0.0014]
[1728219386296,0.0074,62257.0,62256.0,0.04911679]
[1728219386499,0.0114,62257.0,62256.0,0.0014]
[1728219388596,0.0114,62257.0,62256.0,0.065654]
[1728219394512,0.0114,62257.0,62256.0,0.0014]
[1728219395708,0.075653,62257.0,62256.0,0.0014]
[1728219396109,0.075653,62257.0,62256.0,0.0018]
[1728219401121,0.135653,62257.0,62256.0,0.0018]
[1728219402206,0.075653,62257.0,62256.0,0.0018]
[1728219405614,0.0114,62257.0,62256.0,0.0018]
[1728219405817,0.36164,62268.0,62265.0,0.064244]
[1728219405818,0.3608,62268.0,62265.0,0.064244]
[1728219406218,0.3608,62268.0,62265.0,0.064644]
[1728219406526,0.3608,62268.0,62265.0,0.1123226]
[1728219406819,0.3608,62268.0,62265.0,0.064644]
[1728219409225,0.0034,62266.0,62265.0,0.426444]
[1728219411124,0.0034,62266.0,62265.0,0.44919301]
[1728219411631,0.0104,62266.0,62265.0,0.426444]
[1728219412022,0.0104,62266.0,62265.0,0.065644]
[1728219412335,0.0064,62266.0,62265.0,0.064644]
[1728219415834,0.0064,62266.0,62265.0,0.0004]
[1728219416031,0.070643,62266.0,62265.0,0.0004]
[1728219419335,0.070643,62266.0,62265.0,0.04827481]
[1728219420126,0.070643,62266.0,62265.0,0.0004]
[1728219421738,0.10166409,62266.0,62265.0,0.0004]
[1728219424538,0.10166459,62266.0,62265.0,0.0004]
[1728219427443,0.10166494,62266.0,62265.0,0.0004]
[1728219428834,0.070643,62266.0,62265.0,0.0004]
[1728219430349,0.070643,62266.0,62265.0,0.0482866]
[1728219431845,0.070643,62266.0,62265.0,0.0004]
[1728219435638,0.070643,62266.0,62265.0,0.0482866]
[1728219436352,0.431443,62266.0,62265.0,0.0482866]
[1728219436738,0.070643,62266.0,62265.0,0.0004]
[1728219436932,0.431443,62266.0,62265.0,0.0004]
[1728219440839,0.070643,62266.0,62265.0,0.0004]
[1728219443937,0.10166707,62266.0,62265.0,0.0004]
[1728219445946,0.14099747,62266.0,62265.0,0.0004]
[1728219446941,0.50179747,62266.0,62265.0,0.0004]
[1728219447850,0.52478987,62266.0,62265.0,0.0004]
[1728219448643,0.4544354,62266.0,62265.0,0.0004]
[1728219448844,0.52478987,62266.0,62265.0,0.0004]
[1728219451845,0.4544354,62266.0,62265.0,0.0482866]
[1728219453058,0.431443,62266.0,62265.0,0.0004]
[1728219454849,0.070643,62266.0,62265.0,0.0004]
[1728219459454,0.070643,62266.0,62265.0,0.04834754]
[1728219460046,0.070643,62266.0,62265.0,0.0004]
[1728219461861,0.431443,62266.0,62265.0,0.0004]
[1728219462359,0.431443,62266.0,62253.0,0.08374606]
[1728219462360,0.06425,62259.0,62258.0,0.04794754]
[1728219462552,0.064253,62257.0,62256.0,0.04874754]
[1728219462758,0.064653,62257.0,62256.0,0.04874754]
[1728219463158,0.097253,62257.0,62256.0,0.04874754]
[1728219463664,0.097253,62257.0,62256.0,0.0008]
[1728219463962,0.097253,62257.0,62256.0,0.04874754]
[1728219464460,0.458053,62257.0,62256.0,0.0068]
[1728219465461,0.489453,62257.0,62256.0,0.0118]
[1728219465662,0.489453,62257.0,62256.0,0.0098]
[1728219466658,0.489453,62257.0,62256.0,0.0048]
[1728219466857,0.55981621,62257.0,62256.0,0.0048]
[1728219467152,0.55981621,62257.0,62256.0,0.006]
[1728219467958,0.55981621,62257.0,62256.0,0.002]
[1728219468461,0.55981621,62257.0,62256.0,0.003]
[1728219470163,0.19901621,62257.0,62256.0,0.003]
[1728219470359,0.55981621,62257.0,62256.0,0.003]
[1728219471973,0.49581621,62257.0,62256.0,0.003]
[1728219473174,0.49581576,62257.0,62256.0,0.003]
[1728219473863,0.45648073,62257.0,62256.0,0.003]
[1728219474082,0.425453,62257.0,62256.0,0.003]
[1728219474279,0.425453,62257.0,62256.0,0.001]
[1728219474475,0.425453,62257.0,62256.0,0.005]
[1728219474981,0.425453,62257.0,62256.0,0.08504606]
[1728219476268,0.425453,62257.0,62256.0,0.08304606]
[1728219476475,0.425453,62257.0,62256.0,0.003]
[1728219476777,0.425453,62257.0,62256.0,0.006]
[1728219476978,0.425453,62257.0,62256.0,0.08604606]
[1728219478375,0.064653,62257.0,62256.0,0.08604606]
[1728219478879,0.064653,62257.0,62256.0,0.08304606]
[1728219480482,0.064653,62257.0,62256.0,0.10566573]
[1728219481881,0.09568009,62257.0,62256.0,0.02561967]
[1728219483780,0.03142709,62257.0,62256.0,0.08987367]
[1728219486291,0.09568009,62257.0,62256.0,0.08987367]
[1728219486485,0.09567997,62257.0,62256.0,0.08987367]
[1728219489189,0.064653,62257.0,62256.0,0.08987367]
[1728219492395,0.064653,62257.0,62256.0,0.28209694]
[1728219493695,0.064653,62257.0,62256.0,0.08987367]
[1728219497098,0.09567867,62257.0,62256.0,0.08987367]
[1728219497792,0.03142567,62257.0,62256.0,0.08987367]
[1728219501400,0.03142437,62257.0,62256.0,0.08987367]
[1728219501703,0.03142437,62257.0,62256.0,0.45067367]
[1728219502084,0.03142437,62257.0,62256.0,0.43067367]
[1728219502893,0.03142455,62257.0,62256.0,0.43067367]
[1728219504094,0.0004,62257.0,62256.0,0.62302508]
[1728219504293,0.0004,62257.0,62256.0,0.26222508]
[1728219506298,0.0004,62257.0,62256.0,0.2622056]
[1728219508499,0.0004,62257.0,62256.0,0.6230056]
[1728219509693,0.0004,62257.0,62256.0,0.54295954]
[1728219510704,0.0004,62257.0,62256.0,0.62288542]
[1728219512198,0.03142429,62257.0,62256.0,0.43067367]
[1728219513206,0.0004,62257.0,62256.0,0.43067367]
[1728219514106,0.03142391,62257.0,62256.0,0.43067367]
[1728219515306,0.03142391,62257.0,62256.0,0.06987367]
[1728219515508,0.03142391,62257.0,62256.0,0.43067367]
[1728219516202,0.03142416,62257.0,62256.0,0.43067367]
[1728219516599,0.03142416,62257.0,62256.0,0.06987367]
[1728219516799,0.03142416,62257.0,62256.0,0.43067367]
[1728219517903,0.0004,62257.0,62256.0,0.43067367]
[1728219519302,0.0004,62257.0,62256.0,0.54326317]
[1728219521008,0.0004,62257.0,62256.0,0.54328065]
[1728219521409,0.0004,62257.0,62256.0,0.18248065]
[1728219521616,0.0004,62257.0,62256.0,0.54328065]
[1728219525917,0.0004,62257.0,62256.0,0.54326679]
[1728219527716,0.0004,62257.0,62256.0,0.18246679]
[1728219527910,0.0004,62257.0,62256.0,0.54326679]
[1728219530809,0.0004,62257.0,62256.0,0.54353851]
[1728219534219,0.0004,62257.0,62256.0,0.43067367]
[1728219534421,0.03142404,62257.0,62256.0,0.43067367]
[1728219540423,0.09567704,62257.0,62256.0,0.064254]
[1728219540628,0.03142478,62257.0,62250.0,0.3608]
[1728219540824,0.09527878,62256.0,62252.0,0.064257]
[1728219541029,0.03102478,62255.0,62250.0,0.38974842]
[1728219541216,0.03102478,62255.0,62253.0,0.064257]
[1728219541423,0.0646,62254.0,62253.0,0.064257]
[1728219541722,0.09562478,62254.0,62253.0,0.064257]
[1728219542233,0.0646,62254.0,62253.0,0.25776353]
[1728219542529,0.0646,62254.0,62253.0,0.26176353]
[1728219542928,0.0646,62254.0,62253.0,0.18175598]
[1728219543928,0.0646,62254.0,62253.0,0.18675598]
[1728219544326,0.0646,62254.0,62253.0,0.18667311]
[1728219546233,0.02441657,62254.0,62253.0,0.18667311]
[1728219549239,0.02441657,62254.0,62253.0,0.54747311]
[1728219550526,0.02441657,62254.0,62253.0,0.18667311]
[1728219550730,0.02441657,62254.0,62253.0,0.54747311]
[1728219551440,0.02441657,62254.0,62253.0,0.18667311]
[1728219551627,0.02441657,62254.0,62253.0,0.54747311]
[1728219551827,0.02441657,62254.0,62253.0,0.18667311]
[1728219552023,0.0004,62257.0,62256.0,0.064254]
[1728219552224,0.0004,62257.0,62256.0,0.17767011]
[1728219552428,0.0004,62257.0,62256.0,0.53887011]
[1728219553241,0.0004,62257.0,62256.0,0.54087011]
[1728219553539,0.0004,62257.0,62256.0,0.54187011]
[1728219556735,0.0004,62257.0,62256.0,0.63786676]
[1728219557129,0.03142417,62257.0,62256.0,0.428454]
[1728219558938,0.03142427,62257.0,62256.0,0.428454]
[1728219562237,0.51330427,62257.0,62256.0,0.003]
[1728219562432,0.51330427,62257.0,62244.0,0.0037]
[1728219562433,1.15263928,62257.0,62244.0,0.0037]
[1728219562638,1.15263928,62257.0,62243.0,0.00240969]
[1728219562639,0.0004,62246.0,62243.0,0.00240969]
[1728219562840,0.0004,62244.0,62243.0,0.06667669]
[1728219564344,0.0014,62244.0,62243.0,0.09467669]
[1728219569548,0.0014,62244.0,62243.0,0.1599851]
[1728219569739,0.0014,62244.0,62243.0,0.1915851]
[1728219570333,0.0014,62244.0,62243.0,0.30656491]
[1728219572442,0.0014,62244.0,62243.0,0.1915851]
[1728219573844,0.0014,62244.0,62243.0,0.12627669]
[1728219574155,0.0014,62244.0,62243.0,0.19157916]
[1728219575462,0.0332,62256.0,62243.0,0.08712602]
[1728219575647,0.0004,62257.0,62255.0,0.0004]
[1728219575843,0.0004,62257.0,62256.0,0.064654]
[1728219577542,0.0004,62257.0,62256.0,0.065654]
[1728219577946,0.0004,62257.0,62256.0,0.067654]
[1728219580149,0.0004,62257.0,62256.0,0.09620982]
[1728219580545,0.0004,62257.0,62256.0,0.29152666]
[1728219581752,0.0004,62257.0,62256.0,0.21160566]
[1728219584758,0.0004,62257.0,62256.0,0.21156944]
[1728219586355,0.0004,62257.0,62256.0,0.27686353]
[1728219587456,0.0004,62257.0,62256.0,0.16150391]
[1728219590548,0.0004,62257.0,62256.0,0.09620982]
[1728219591856,0.0004,62257.0,62256.0,0.45700982]
[1728219594259,0.049747,62263.0,62260.0,0.064249]
[1728219594460,0.03102348,62262.0,62260.0,0.064249]
[1728219594764,0.049747,62263.0,62260.0,0.064249]
[1728219594967,0.03102348,62262.0,62260.0,0.064249]
[1728219595268,0.049747,62263.0,62260.0,0.064249]
[1728219595463,0.049747,62263.0,62261.0,0.06389328]
[1728219595772,0.049747,62263.0,62262.0,0.0004]
[1728219596861,0.051747,62263.0,62262.0,0.0004]
[1728219597358,0.055747,62263.0,62262.0,0.0004]
[1728219597565,0.053747,62263.0,62262.0,0.0004]
[1728219597761,0.057747,62263.0,62262.0,0.0004]
[1728219601170,0.057747,62263.0,62262.0,0.06429328]
[1728219602059,0.008,62263.0,62262.0,0.12854028]
[1728219602272,0.008,62263.0,62262.0,0.1285911]
[1728219602672,0.008,62263.0,62262.0,0.064647]
[1728219602873,0.0390237,62263.0,62262.0,0.064647]
[1728219603680,0.03902371,62263.0,62262.0,0.064647]
[1728219605377,0.008,62263.0,62262.0,0.425447]
[1728219605867,0.008,62263.0,62262.0,0.45055694]
[1728219606773,0.008,62263.0,62262.0,0.425447]
[1728219607282,0.008,62263.0,62262.0,0.45055667]
[1728219608173,0.008,62263.0,62262.0,0.425447]
[1728219608671,0.008,62263.0,62262.0,0.45055633]
[1728219609081,0.0004,62266.0,62265.0,0.064244]
[1728219609277,0.0004,62266.0,62265.0,0.064644]
[1728219610473,0.0134,62266.0,62265.0,0.066644]
[1728219611074,0.0134,62266.0,62265.0,0.2613632]
[1728219611271,0.3608,62282.0,62269.0,0.06424]
[1728219611475,0.3608,62282.0,62269.0,0.06464]
[1728219612680,0.3608,62282.0,62269.0,0.08974765]
[1728219612884,0.094428,62281.0,62269.0,0.08974765]
[1728219613185,0.064229,62280.0,62269.0,0.08974765]
[1728219613485,0.064229,62280.0,62269.0,0.06564]
[1728219613687,0.0302,62281.0,62269.0,0.06564]
[1728219613881,0.06423,62279.0,62269.0,0.09074765]
[1728219614184,0.06423,62279.0,62269.0,0.09174765]
[1728219614485,0.0302,62281.0,62269.0,0.09174765]
[1728219614486,0.064231,62278.0,62269.0,0.09174765]
[1728219614980,0.064231,62278.0,62269.0,0.15557462]
[1728219615389,0.3608,62282.0,62269.0,0.09174765]
[1728219615781,0.3608,62282.0,62281.0,0.0004]
[1728219617085,0.3608,62282.0,62281.0,0.065628]
[1728219617674,0.43113584,62282.0,62281.0,0.065628]
[1728219618072,0.43113584,62282.0,62281.0,0.066628]
[1728219619586,0.3608,62282.0,62281.0,0.066628]
[1728219619785,0.43113371,62282.0,62281.0,0.066628]
[1728219620588,0.39181492,62282.0,62281.0,0.066628]
[1728219621088,0.03101492,62282.0,62281.0,0.066628]
[1728219622690,0.03101305,62282.0,62281.0,0.066628]
[1728219623510,0.3608,62289.0,62281.0,0.0024]
[1728219623697,0.03101292,62288.0,62282.0,0.0317]
[1728219623901,0.03101292,62287.0,62282.0,0.0944]
[1728219624102,0.03101292,62286.0,62282.0,0.0944]
[1728219624297,0.45464323,62289.0,62282.0,0.0944]
[1728219624601,0.03101162,62288.0,62287.0,0.064222]
[1728219625507,0.064215,62293.0,62282.0,0.12381403]
[1728219625708,0.0004,62283.0,62282.0,0.12381403]
[1728219625898,0.0004,62283.0,62282.0,0.23590199]
[1728219626494,0.064217,62292.0,62282.0,1.20649403]
[1728219626711,0.064217,62292.0,62287.0,0.064221]
[1728219627013,0.064217,62292.0,62291.0,0.0004]
[1728219628603,0.064217,62292.0,62291.0,0.0014]
[1728219629403,0.064217,62292.0,62291.0,0.0024]
[1728219639711,0.3608,62294.0,62293.0,0.064215]
[1728219640118,0.3608,62294.0,62293.0,0.064615]
[1728219640508,0.3608,62294.0,62286.0,0.064223]
[1728219640710,0.3608,62294.0,62292.0,0.064216]
[1728219641331,0.3608,62294.0,62293.0,0.064215]
[1728219641526,0.3608,62294.0,62293.0,0.065215]
[1728219642224,0.3608,62294.0,62293.0,0.064215]
[1728219642619,0.425014,62294.0,62293.0,0.065215]
[1728219644617,0.425014,62294.0,62293.0,0.066215]
[1728219648424,0.064214,62294.0,62293.0,0.066215]
[1728219648817,0.3608,62298.0,62293.0,0.066215]
[1728219649017,0.3608,62298.0,62294.0,0.0637977]
[1728219649222,0.064212,62296.0,62294.0,0.0637977]
[1728219649618,0.064212,62296.0,62295.0,0.0637977]
[1728219650623,0.064212,62296.0,62293.0,0.066215]
[1728219651228,0.064212,62296.0,62295.0,0.001]
[1728219653434,0.064212,62296.0,62293.0,0.065215]
[1728219653730,0.064212,62296.0,62295.0,0.001]